bitfinex-derivatives/quotes_BTCF0:USTF0_20251011
["timestamp","ask_amount","ask_price","bid_price","bid_amount"]
[1760223343075,0.125271,111160.0,111150.0,0.39685]
[1760223345281,0.40746864,111160.0,111150.0,0.39685]
[1760223347078,0.111791,111160.0,111150.0,0.39685]
[1760223348684,0.02193,111160.0,111150.0,0.4867185]
[1760223349081,0.1117904,111160.0,111150.0,0.4867185]
[1760223350183,0.1117904,111160.0,111150.0,0.39685]
[1760223350579,0.1117904,111160.0,111150.0,0.4867185]
[1760223351587,0.1117904,111160.0,111150.0,0.39685]
[1760223353882,0.1252704,111160.0,111150.0,0.39685]
[1760223354185,0.1252704,111160.0,111140.0,0.384]
[1760223354186,0.1252792,111150.0,111140.0,0.384]
[1760223354489,0.42095684,111150.0,111140.0,0.384]
[1760223356383,0.42195684,111150.0,111140.0,0.384]
[1760223356578,0.1252865,111140.0,111130.0,0.384]
[1760223356784,0.42096414,111140.0,111130.0,0.384]
[1760223357991,0.82096414,111140.0,111130.0,0.384]
[1760223358289,0.1252946,111130.0,111120.0,0.384]
[1760223358493,0.42097224,111130.0,111120.0,0.384]
[1760223361285,0.42097224,111130.0,111120.0,0.3608]
[1760223361485,0.1253022,111120.0,111110.0,0.39313727]
[1760223361690,0.42097984,111120.0,111110.0,0.39313727]
[1760223362198,0.42097984,111120.0,111110.0,0.384]
[1760223367098,0.1118227,111120.0,111110.0,0.4868808]
[1760223367401,0.42019034,111120.0,111110.0,0.384]
[1760223367698,0.42019034,111120.0,111110.0,0.0232]
[1760223369901,0.42019034,111120.0,111110.0,0.384]
[1760223370101,0.1245127,111120.0,111110.0,0.39698]
[1760223370291,0.1118227,111120.0,111110.0,0.39698]
[1760223370799,0.1245127,111120.0,111110.0,0.39698]
[1760223370998,0.42019034,111120.0,111110.0,0.39698]
[1760223371197,0.42019034,111120.0,111110.0,0.384]
[1760223371998,0.42019034,111120.0,111110.0,0.39698]
[1760223373303,0.42019034,111120.0,111110.0,0.384]
[1760223375197,0.42019034,111120.0,111110.0,0.0232]
[1760223378606,0.42019034,111120.0,111110.0,0.384]
[1760223380808,0.42019034,111120.0,111110.0,0.39698]
[1760223381010,0.40750034,111120.0,111110.0,0.4868796]
[1760223381210,0.0898915,111120.0,111110.0,1.18255724]
[1760223381709,0.02201,111130.0,111120.0,0.03509]
[1760223381898,0.02201,111130.0,111120.0,0.39589]
[1760223382102,0.1118934,111130.0,111120.0,0.39589]
[1760223382503,0.1245834,111130.0,111120.0,0.39589]
[1760223383910,0.42026104,111130.0,111120.0,0.38291]
[1760223386210,0.1245834,111130.0,111120.0,0.38291]
[1760223387416,0.13604392,111130.0,111120.0,0.39589]
[1760223387812,0.04616052,111130.0,111120.0,0.78145914]
[1760223388112,0.02201,111140.0,111130.0,0.03509]
[1760223388309,0.1118853,111140.0,111130.0,0.39589]
[1760223388505,0.13603328,111140.0,111130.0,0.39589]
[1760223389014,0.13603328,111140.0,111130.0,0.40503227]
[1760223389816,0.14872328,111140.0,111130.0,0.39589]
[1760223390323,0.44440181,111140.0,111130.0,0.02211]
[1760223390820,0.42025294,111140.0,111130.0,0.02211]
[1760223391029,0.44440205,111140.0,111130.0,0.02211]
[1760223391227,0.44440205,111140.0,111120.0,0.38291]
[1760223391228,0.1245834,111130.0,111120.0,0.38291]
[1760223391430,0.42026104,111130.0,111120.0,0.38291]
[1760223391726,0.42026104,111130.0,111120.0,0.39171064]
[1760223392025,0.42026104,111130.0,111120.0,0.38291]
[1760223392222,0.82026104,111130.0,111120.0,0.02211]
[1760223392622,0.1245115,111120.0,111110.0,0.38322]
[1760223392822,0.42018914,111120.0,111110.0,0.38322]
[1760223393528,0.42018914,111120.0,111110.0,0.02242]
[1760223395126,0.1245115,111120.0,111110.0,0.02242]
[1760223395329,0.1245115,111120.0,111100.0,0.37365]
[1760223395330,0.1245196,111110.0,111100.0,0.38322]
[1760223395526,0.42019724,111110.0,111100.0,0.3608]
[1760223395827,0.42019724,111110.0,111090.0,0.38322]
[1760223395828,0.1245277,111100.0,111090.0,0.38322]
[1760223396129,0.42020534,111100.0,111090.0,0.38322]
[1760223397425,0.45751211,111100.0,111090.0,0.72926441]
[1760223398032,0.45751211,111100.0,111090.0,0.38322]
[1760223398332,0.45751211,111100.0,111090.0,0.39628]
[1760223399431,0.45751211,111100.0,111090.0,0.71620441]
[1760223400030,0.45751211,111100.0,111090.0,0.38322]
[1760223400724,0.45751211,111100.0,111090.0,0.3608]
[1760223401036,0.79049652,111100.0,111090.0,0.3608]
[1760223401736,0.45751211,111100.0,111090.0,0.3608]
[1760223402337,0.1245277,111100.0,111090.0,0.38376]
[1760223402631,0.45751211,111100.0,111090.0,0.38376]
[1760223403131,0.45751211,111100.0,111090.0,0.72995441]
[1760223403434,0.02166,111100.0,111090.0,1.21987011]
[1760223403647,0.1115676,111100.0,111090.0,1.21987011]
[1760223404927,0.1115676,111100.0,111090.0,1.12995441]
[1760223405336,0.44455201,111100.0,111090.0,1.12995441]
[1760223405541,0.1253876,111100.0,111090.0,0.78376]
[1760223405834,0.54160161,111100.0,111090.0,0.38376]
[1760223406231,0.1253876,111100.0,111090.0,0.38376]
[1760223406536,0.1115676,111100.0,111090.0,0.39697]
[1760223409344,0.1253876,111100.0,111090.0,0.38376]
[1760223409536,0.1253876,111100.0,111090.0,0.39697]
[1760223410940,0.1115676,111100.0,111090.0,0.39697]
[1760223411140,0.1115676,111100.0,111090.0,0.4868857]
[1760223411343,0.02166,111100.0,111090.0,0.4868857]
[1760223411536,0.1115676,111100.0,111090.0,0.4868857]
[1760223412251,0.1116529,111110.0,111100.0,0.03617]
[1760223412431,0.1116529,111110.0,111100.0,0.39697]
[1760223412637,0.1254729,111110.0,111100.0,0.39697]
[1760223414042,0.1254729,111110.0,111100.0,0.38376]
[1760223415938,0.1254857,111090.0,111080.0,0.4736815]
[1760223417034,0.1254857,111090.0,111080.0,0.38376]
[1760223417239,0.54169971,111090.0,111080.0,0.38376]
[1760223418138,0.1254857,111090.0,111080.0,0.38376]
[1760223418342,0.1254857,111090.0,111080.0,0.38476]
[1760223418839,0.1254857,111090.0,111080.0,0.02396]
[1760223419041,0.54169971,111090.0,111080.0,0.02396]
[1760223419742,0.1254857,111090.0,111080.0,0.02396]
[1760223420344,0.94169971,111090.0,111080.0,0.001]
[1760223420647,0.96582183,111090.0,111080.0,0.001]
[1760223420846,1.32662183,111090.0,111080.0,0.001]
[1760223421047,1.32662183,111090.0,111080.0,1e-07]
[1760223421242,0.1255018,111070.0,111060.0,0.00011538]
[1760223421543,0.92663991,111070.0,111060.0,0.00011538]
[1760223421847,1.32663991,111070.0,111060.0,8e-08]
[1760223422445,1.4265584,111070.0,111060.0,8e-08]
[1760223422646,1.49977132,111070.0,111060.0,8e-08]
[1760223424742,1.08355731,111070.0,111060.0,8e-08]
[1760223424947,1.39985283,111070.0,111060.0,0.02286008]
[1760223425840,0.14972599,111070.0,111060.0,0.02286008]
[1760223426046,0.12560189,111070.0,111060.0,0.03652008]
[1760223426646,0.12560189,111070.0,111060.0,0.02286008]
[1760223427148,0.5418159,111070.0,111060.0,0.02286008]
[1760223427549,0.56563987,111070.0,111060.0,8e-08]
[1760223427746,0.5418159,111070.0,111060.0,0.02286008]
[1760223428350,0.5418159,111070.0,111060.0,8e-08]
[1760223429042,0.12560189,111070.0,111060.0,0.02286008]
[1760223435046,0.11178189,111070.0,111060.0,0.79732008]
[1760223437147,0.12463189,111070.0,111060.0,0.78366008]
[1760223437452,0.12463189,111070.0,111060.0,0.38366008]
[1760223437640,0.5408459,111070.0,111060.0,8e-08]
[1760223437843,0.9016459,111070.0,111060.0,8e-08]
[1760223438850,0.48543189,111070.0,111060.0,0.02286008]
[1760223439051,0.9016459,111070.0,111060.0,0.02286008]
[1760223440040,0.48543189,111070.0,111060.0,0.02286008]
[1760223440247,0.12463189,111070.0,111060.0,0.02286008]
[1760223440646,0.12463189,111070.0,111060.0,0.43652008]
[1760223440842,0.11178189,111070.0,111060.0,0.79732008]
[1760223441047,0.02185009,111070.0,111060.0,0.88725998]
[1760223441251,0.00010009,111070.0,111060.0,1.30347399]
[1760223441648,0.00010009,111070.0,111060.0,0.88725998]
[1760223442650,0.11249189,111070.0,111060.0,0.88725998]
[1760223442850,0.09003189,111070.0,111060.0,0.88725998]
[1760223446859,0.00010009,111070.0,111060.0,0.88725998]
[1760223451654,0.11249189,111070.0,111060.0,0.88725998]
[1760223453857,0.00010009,111070.0,111060.0,0.88725998]
[1760223454359,0.00010009,111070.0,111060.0,1.30347399]
[1760223455258,0.00010009,111070.0,111060.0,0.88725998]
[1760223455458,0.00010009,111070.0,111060.0,1.55332134]
[1760223457667,0.00010009,111070.0,111060.0,0.88725998]
[1760223462374,0.00010009,111070.0,111060.0,0.48725998]
[1760223471284,0.00010009,111070.0,111060.0,0.56805386]
[1760223476697,0.00010009,111070.0,111060.0,0.91266469]
[1760223478590,0.00010009,111070.0,111060.0,0.56805386]
[1760223479490,0.00010009,111070.0,111060.0,0.86411827]
[1760223481603,0.00010009,111070.0,111060.0,1.22491827]
[1760223486704,0.51198189,111070.0,111060.0,0.83891396]
[1760223486896,0.8218263,111070.0,111060.0,0.83891396]
[1760223487097,0.51198189,111070.0,111060.0,0.75806008]
[1760223489908,0.02205009,111070.0,111060.0,1.14406439]
[1760223490094,0.00010009,111070.0,111060.0,1.14406439]
[1760223490294,0.00010009,111070.0,111060.0,0.84799998]
[1760223490502,0.00010009,111070.0,111060.0,1.14406439]
[1760223491510,0.00010009,111070.0,111060.0,0.84799998]
[1760223491700,0.00010009,111070.0,111060.0,1.14406439]
[1760223495709,0.02205009,111070.0,111060.0,0.84799998]
[1760223495903,0.11198239,111070.0,111060.0,0.84799998]
[1760223496699,0.12576239,111070.0,111060.0,0.84799998]
[1760223497104,0.12576239,111070.0,111060.0,0.75806008]
[1760223497303,0.12576239,111070.0,111060.0,0.74446008]
[1760223498810,0.12576239,111070.0,111060.0,0.75806008]
[1760223499411,0.12576239,111070.0,111060.0,0.39726008]
[1760223499907,0.4218268,111070.0,111060.0,0.38366008]
[1760223500109,0.12576239,111070.0,111060.0,0.38366008]
[1760223500311,0.4218268,111070.0,111060.0,0.38366008]
[1760223504613,0.4218268,111070.0,111060.0,0.39726008]
[1760223505214,0.12576239,111070.0,111060.0,0.39726008]
[1760223508212,0.02205009,111070.0,111060.0,0.48720048]
[1760223509011,0.00010009,111070.0,111060.0,0.78326489]
[1760223509412,0.00010009,111070.0,111060.0,1.18326489]
[1760223509616,0.02195,111100.0,111090.0,0.1254716]
[1760223509810,0.02195,111100.0,111090.0,0.39636]
[1760223510724,0.02295,111100.0,111090.0,0.4862761]
[1760223510918,0.001,111100.0,111090.0,0.4862761]
[1760223511219,0.001,111100.0,111090.0,0.78234051]
[1760223511420,0.02295,111100.0,111090.0,0.4862761]
[1760223511623,0.02295,111100.0,111090.0,0.39636]
[1760223511624,0.1261481,111100.0,111090.0,0.39636]
[1760223512222,0.1261481,111100.0,111090.0,0.40522308]
[1760223513120,0.1251481,111100.0,111090.0,0.40522308]
[1760223513317,0.1251481,111100.0,111090.0,0.38276]
[1760223513716,0.1251481,111100.0,111090.0,0.3963]
[1760223513915,0.1251481,111100.0,111090.0,0.38276]
[1760223514420,0.1251481,111100.0,111090.0,0.3963]
[1760223514621,0.02195,111100.0,111090.0,0.4862161]
[1760223514923,0.02195,111100.0,111090.0,0.49526139]
[1760223515422,0.111858,111100.0,111090.0,0.49526139]
[1760223515818,0.125148,111100.0,111090.0,0.38276]
[1760223516122,0.84523645,111100.0,111090.0,0.3608]
[1760223516512,0.1243262,111090.0,111080.0,0.02117]
[1760223516710,0.1243342,111080.0,111070.0,0.38197]
[1760223516911,0.42039861,111080.0,111070.0,0.38197]
[1760223517117,0.82039861,111080.0,111070.0,0.38197]
[1760223517415,0.82039861,111080.0,111070.0,0.3608]
[1760223518214,0.82039861,111080.0,111070.0,0.38197]
[1760223519021,0.82039861,111080.0,111070.0,0.3608]
[1760223519416,0.5243342,111080.0,111070.0,0.38197]
[1760223519622,0.85751707,111080.0,111070.0,0.38197]
[1760223520519,0.85751707,111080.0,111070.0,0.02117]
[1760223520725,1.21831707,111080.0,111070.0,0.02117]
[1760223521322,0.8851342,111080.0,111070.0,0.02117]
[1760223521623,1.21831707,111080.0,111070.0,0.02117]
[1760223522424,0.81831707,111080.0,111070.0,0.02117]
[1760223523320,0.1257831,111070.0,111060.0,0.71516295]
[1760223523520,0.45896597,111070.0,111060.0,0.71516295]
[1760223524026,0.45896597,111070.0,111060.0,0.72905295]
[1760223524628,0.45896597,111070.0,111060.0,0.73005295]
[1760223524829,0.1257831,111070.0,111060.0,0.73005295]
[1760223525135,0.44498597,111070.0,111060.0,0.73005295]
[1760223525828,0.44498597,111070.0,111060.0,0.73884451]
[1760223526131,0.45896597,111070.0,111060.0,0.02218008]
[1760223526326,0.85896597,111070.0,111060.0,0.00100008]
[1760223526629,1.19214884,111070.0,111060.0,0.00100008]
[1760223526828,0.5257831,111070.0,111060.0,0.00100008]
[1760223527028,0.85896597,111070.0,111060.0,0.00100008]
[1760223528127,0.5257831,111070.0,111060.0,0.00100008]
[1760223528326,0.85896597,111070.0,111060.0,0.02218008]
[1760223528827,0.5257831,111070.0,111060.0,0.02218008]
[1760223529029,0.1257831,111070.0,111060.0,0.35536295]
[1760223529325,0.1118031,111070.0,111060.0,0.48681128]
[1760223529521,0.02187,111070.0,111060.0,0.81999415]
[1760223529722,0.44497787,111080.0,111070.0,0.03507]
[1760223529926,0.02187,111080.0,111070.0,0.45818597]
[1760223530234,0.111795,111080.0,111070.0,0.81898597]
[1760223532125,0.02187,111080.0,111070.0,0.81898597]
[1760223533434,0.111795,111080.0,111070.0,0.81898597]
[1760223533631,0.34647287,111090.0,111070.0,0.81898597]
[1760223533933,0.44497147,111090.0,111080.0,0.36825287]
[1760223534329,0.44497147,111090.0,111080.0,0.72905287]
[1760223534634,0.44497147,111090.0,111080.0,0.82802123]
[1760223535135,0.44497147,111090.0,111080.0,0.73809623]
[1760223535933,0.02187,111090.0,111080.0,0.49483836]
[1760223536133,0.1117869,111090.0,111080.0,0.73809623]
[1760223536329,0.44496977,111090.0,111080.0,0.39587]
[1760223536536,0.45894977,111090.0,111080.0,0.38198]
[1760223536731,0.44496977,111090.0,111080.0,0.72905287]
[1760223537336,0.1117869,111090.0,111080.0,0.72905287]
[1760223537534,0.44496977,111090.0,111080.0,0.72905287]
[1760223539536,0.35505287,111090.0,111080.0,0.828156]
[1760223540332,0.35505287,111090.0,111080.0,0.73823]
[1760223541336,0.45895077,111090.0,111080.0,0.38198]
[1760223542736,0.45895077,111090.0,111080.0,0.02118]
[1760223542737,0.79213364,111090.0,111080.0,0.02118]
[1760223543526,0.03552,111080.0,111070.0,0.71644287]
[1760223543730,0.36870287,111080.0,111070.0,0.38326]
[1760223544835,0.03552,111080.0,111070.0,0.38326]
[1760223545036,0.36870287,111080.0,111070.0,0.38326]
[1760223545538,0.03552,111080.0,111070.0,0.39631]
[1760223545741,0.36870287,111080.0,111070.0,0.39631]
[1760223546238,0.36870287,111080.0,111070.0,0.72949287]
[1760223547831,0.36870287,111080.0,111070.0,0.71644287]
[1760223549832,0.45862887,111080.0,111070.0,0.72949287]
[1760223550537,0.35483287,111080.0,111070.0,0.72949287]
[1760223550934,0.45862887,111080.0,111070.0,0.02246]
[1760223551140,0.45862887,111080.0,111060.0,0.38373174]
[1760223551141,0.1254541,111070.0,111060.0,0.39230174]
[1760223551340,0.45863697,111070.0,111060.0,0.39230174]
[1760223552039,0.36870287,111070.0,111060.0,0.40535174]
[1760223552239,0.36870287,111070.0,111060.0,0.73853461]
[1760223552440,0.36870287,111070.0,111060.0,0.73953461]
[1760223552935,0.35483287,111070.0,111060.0,0.82947681]
[1760223554643,0.36870287,111070.0,111060.0,0.73953461]
[1760223555645,0.36870287,111070.0,111060.0,0.82947681]
[1760223556846,0.35483287,111070.0,111060.0,0.82947681]
[1760223562944,0.02165,111070.0,111060.0,0.82947681]
[1760223563146,0.35483287,111080.0,111070.0,0.1254441]
[1760223563343,0.45862887,111080.0,111070.0,0.03551]
[1760223563551,0.45862887,111080.0,111070.0,0.36869287]
[1760223564349,0.45862887,111080.0,111070.0,0.02246]
[1760223566756,0.45862887,111080.0,111070.0,0.35564287]
[1760223567054,0.45862887,111080.0,111070.0,0.36869287]
[1760223567452,0.36870287,111080.0,111070.0,0.45862697]
[1760223568957,0.36870287,111080.0,111070.0,0.44557697]
[1760223569160,0.03552,111080.0,111070.0,0.44557697]
[1760223569456,0.36870287,111080.0,111070.0,0.44557697]
[1760223571762,0.36870287,111080.0,111070.0,0.45822697]
[1760223572262,0.03552,111080.0,111070.0,0.45822697]
[1760223572459,0.36870287,111080.0,111070.0,0.45822697]
[1760223573660,0.36870287,111080.0,111070.0,0.44557697]
[1760223574263,0.36870287,111080.0,111070.0,0.45822697]
[1760223575366,0.02165,111080.0,111070.0,0.45822697]
[1760223576268,0.03723,111090.0,111080.0,0.123606]
[1760223576467,0.03723,111090.0,111080.0,0.45678887]
[1760223576468,0.06079635,111090.0,111080.0,0.45678887]
[1760223576670,0.06079635,111090.0,111080.0,0.123606]
[1760223576968,0.04681635,111090.0,111080.0,0.45678887]
[1760223577663,0.02356635,111090.0,111080.0,0.45678887]
[1760223577865,0.02356635,111090.0,111080.0,1.21758887]
[1760223578163,0.33318287,111100.0,111090.0,0.0899179]
[1760223578369,0.39376202,111100.0,111090.0,0.44413077]
[1760223578866,0.39376202,111100.0,111090.0,0.1109479]
[1760223579569,0.06057915,111100.0,111090.0,0.1109479]
[1760223579959,0.42137915,111100.0,111090.0,0.02103]
[1760223580166,0.03702,111090.0,111080.0,0.110956]
[1760223580365,0.33301583,111090.0,111080.0,0.110956]
[1760223580865,0.33301583,111090.0,111080.0,0.123606]
[1760223580866,0.02325,111090.0,111080.0,0.123606]
[1760223581171,0.03629,111090.0,111080.0,0.110956]
[1760223582072,0.02325,111090.0,111080.0,0.124686]
[1760223582571,0.02247,111100.0,111090.0,0.035]
[1760223582764,0.02247,111100.0,111090.0,0.1249179]
[1760223582962,0.04601264,111100.0,111090.0,0.1249179]
[1760223583472,0.02247,111100.0,111090.0,0.1249179]
[1760223583866,0.35504475,111100.0,111090.0,0.1249179]
[1760223584072,0.05904892,111100.0,111090.0,0.1249179]
[1760223584373,0.03551,111100.0,111090.0,0.1249179]
[1760223585273,0.03551,111100.0,111090.0,0.1111879]
[1760223585674,0.39631,111100.0,111090.0,0.1111879]
[1760223587168,0.39631,111100.0,111090.0,0.42091373]
[1760223587474,0.02247,111100.0,111090.0,0.42091373]
[1760223588369,0.03551,111100.0,111090.0,0.1249179]
[1760223589272,0.1254199,111100.0,111090.0,0.1111879]
[1760223589669,0.4862199,111100.0,111090.0,0.1111879]
[1760223590672,0.78221573,111100.0,111090.0,0.02127]
[1760223591070,0.78221573,111100.0,111090.0,0.111188]
[1760223591473,0.42141573,111100.0,111090.0,0.111188]
[1760223591772,0.4862199,111100.0,111090.0,0.111188]
[1760223593669,0.4862199,111100.0,111090.0,0.1111879]
[1760223594170,0.4862199,111100.0,111090.0,0.02127]
[1760223594370,0.4862199,111100.0,111070.0,0.4720031]
[1760223594371,0.102966,111080.0,111070.0,0.4720031]
[1760223594678,0.102966,111080.0,111070.0,0.4720041]
[1760223594679,0.42143183,111080.0,111070.0,0.4720041]
[1760223594973,0.125436,111080.0,111070.0,0.38207]
[1760223595477,0.03551,111080.0,111070.0,0.4730041]
[1760223595774,0.02247,111080.0,111070.0,0.78272993]
[1760223596268,0.03551,111080.0,111070.0,0.78272993]
[1760223596674,0.03551,111080.0,111070.0,0.4867341]
[1760223601076,0.125436,111080.0,111070.0,0.38307]
[1760223602074,0.125436,111080.0,111070.0,0.4861941]
[1760223602279,0.02247,111080.0,111070.0,0.78218993]
[1760223603882,0.1029633,111090.0,111080.0,0.124596]
[1760223603883,0.02282,111090.0,111080.0,0.124596]
[1760223604182,0.1127379,111090.0,111080.0,0.42059183]
[1760223604782,0.02282,111090.0,111080.0,0.78139183]
[1760223605283,0.39666,111100.0,111090.0,0.124588]
[1760223605482,0.02282,111100.0,111090.0,0.124588]
[1760223605679,0.38362,111110.0,111100.0,0.1245799]
[1760223605978,0.02282,111120.0,111110.0,0.1245718]
[1760223606178,0.04693678,111120.0,111110.0,0.42056763]
[1760223606573,0.02411678,111120.0,111110.0,0.82056763]
[1760223606780,0.02411678,111120.0,111110.0,1.18136763]
[1760223606977,0.02282,111140.0,111130.0,0.1245556]
[1760223607182,0.43993642,111150.0,111140.0,0.1245475]
[1760223607378,0.38362,111150.0,111140.0,0.04360732]
[1760223607884,0.02282,111150.0,111140.0,0.04360732]
[1760223608079,0.03611,111150.0,111140.0,0.03041732]
[1760223608286,0.03611,111150.0,111140.0,0.02148]
[1760223608887,0.02282,111150.0,111140.0,0.33066583]
[1760223609684,0.02282,111150.0,111140.0,0.04343769]
[1760223611588,0.1259794,111150.0,111140.0,0.03024769]
[1760223611788,0.1259794,111150.0,111140.0,0.04343769]
[1760223612583,0.1259794,111150.0,111140.0,0.03024769]
[1760223612988,0.1259794,111150.0,111140.0,0.04343769]
[1760223613585,0.02282,111150.0,111140.0,0.42931102]
[1760223614388,0.39691,111160.0,111150.0,0.03467]
[1760223614590,0.03611,111160.0,111150.0,0.33066583]
[1760223614786,0.02282,111160.0,111150.0,0.42053523]
[1760223615089,0.4867632,111170.0,111160.0,0.03467]
[1760223615590,0.4867632,111170.0,111160.0,0.02148]
[1760223616291,0.78375903,111170.0,111160.0,0.02148]
[1760223616592,0.1259732,111160.0,111150.0,0.02148]
[1760223616787,0.78276903,111160.0,111150.0,0.02148]
[1760223617089,0.1259794,111150.0,111140.0,0.03024769]
[1760223617286,0.42197523,111150.0,111140.0,0.03024769]
[1760223617892,0.42197523,111150.0,111120.0,0.3608]
[1760223617893,0.03611,111140.0,111120.0,0.3608]
[1760223618088,0.02282,111130.0,111120.0,0.4853637]
[1760223618593,0.03611,111130.0,111120.0,0.39547]
[1760223618994,0.02282,111130.0,111120.0,0.39547]
[1760223619498,0.02282,111130.0,111120.0,0.40438259]
[1760223619692,0.03611,111130.0,111120.0,0.49427629]
[1760223619884,0.02282,111130.0,111120.0,0.49427629]
[1760223620893,0.03611,111130.0,111120.0,0.49427629]
[1760223621387,0.1259956,111130.0,111120.0,0.39647]
[1760223621592,0.1259956,111130.0,111120.0,0.38328]
[1760223621794,0.1259956,111130.0,111120.0,0.02248]
[1760223622393,0.42199143,111130.0,111120.0,0.02248]
[1760223623096,0.1259956,111130.0,111120.0,0.02248]
[1760223623786,0.03611,111130.0,111120.0,0.03567]
[1760223623992,0.1259956,111130.0,111120.0,0.03567]
[1760223624194,0.1259956,111130.0,111120.0,0.02248]
[1760223624896,0.82199143,111130.0,111120.0,0.001]
[1760223625097,1.18279143,111130.0,111120.0,0.001]
[1760223625394,1.18279143,111130.0,111120.0,0.02248]
[1760223626588,1.18279143,111130.0,111120.0,0.02148]
[1760223627495,1.18379143,111130.0,111120.0,0.02148]
[1760223628096,0.8877956,111130.0,111120.0,0.02148]
[1760223628399,0.03461,111120.0,111110.0,0.4718309]
[1760223628797,0.1245037,111120.0,111110.0,0.38193]
[1760223629898,0.1245037,111120.0,111110.0,0.4718318]
[1760223630896,0.1245037,111120.0,111110.0,0.38193]
[1760223632103,0.78129953,111120.0,111110.0,0.02113]
[1760223633896,0.1252918,111110.0,111100.0,0.38282]
[1760223634092,0.1025399,111100.0,111090.0,0.02202]
[1760223634299,0.1253079,111090.0,111080.0,0.38282]
[1760223634504,0.1253079,111090.0,111080.0,0.02202]
[1760223634701,0.42130373,111090.0,111080.0,0.02202]
[1760223634895,0.089926,111080.0,111070.0,0.3608]
[1760223635096,0.78211183,111080.0,111070.0,0.02202]
[1760223636802,0.78211183,111080.0,111070.0,0.02302]
[1760223638207,0.486116,111080.0,111070.0,0.02302]
[1760223638397,0.78211183,111080.0,111070.0,0.02302]
[1760223639804,0.486116,111080.0,111070.0,0.02302]
[1760223640610,1.18211183,111080.0,111070.0,0.02302]
[1760223640799,1.18211183,111080.0,111070.0,0.001]
[1760223641506,1.21932048,111080.0,111070.0,0.001]
[1760223642599,0.1025642,111070.0,111060.0,8e-08]
[1760223642803,0.4633642,111070.0,111060.0,8e-08]
[1760223643003,1.19656868,111070.0,111060.0,8e-08]
[1760223643704,1.19656868,111070.0,111060.0,0.33420456]
[1760223643904,1.21912868,111070.0,111060.0,0.35583456]
[1760223644105,0.4859242,111070.0,111060.0,0.03646008]
[1760223644309,0.81912868,111070.0,111060.0,0.36966456]
[1760223645210,0.81912868,111070.0,111060.0,0.36866456]
[1760223645511,0.81912868,111070.0,111060.0,0.02163008]
[1760223646004,0.81912868,111070.0,111060.0,8e-08]
[1760223646210,1.21912868,111070.0,111060.0,8e-08]
[1760223647212,1.21912868,111070.0,111060.0,0.02163008]
[1760223647405,0.8859242,111070.0,111060.0,0.02163008]
[1760223647609,1.21912868,111070.0,111060.0,0.02163008]
[1760223648706,0.8859242,111070.0,111060.0,0.02163008]
[1760223649014,1.21912868,111070.0,111060.0,0.02163008]
[1760223649706,0.81912868,111070.0,111060.0,0.36866456]
[1760223649906,0.1124942,111070.0,111060.0,0.36866456]
[1760223650107,0.44569868,111070.0,111060.0,0.36866456]
[1760223650510,0.45940868,111070.0,111060.0,0.36866456]
[1760223651415,0.45940868,111070.0,111060.0,0.02163008]
[1760223651917,0.82020868,111070.0,111060.0,0.02163008]
[1760223652514,0.4870042,111070.0,111060.0,0.03546008]
[1760223652715,0.82020868,111070.0,111060.0,0.03546008]
[1760223652916,0.82020868,111070.0,111060.0,0.36866456]
[1760223653411,0.82020868,111070.0,111060.0,0.35483456]
[1760223653615,0.82020868,111070.0,111060.0,0.02163008]
[1760223655511,1.55341316,111070.0,111060.0,8e-08]
[1760223655716,1.22020868,111070.0,111060.0,8e-08]
[1760223656210,1.24371056,111070.0,111060.0,8e-08]
[1760223656613,1.24371056,111070.0,111060.0,0.02163008]
[1760223656818,1.24371056,111070.0,111060.0,8e-08]
[1760223658806,0.91050608,111070.0,111060.0,0.02163008]
[1760223659016,1.24371056,111070.0,111060.0,0.02163008]
[1760223659418,1.24371056,111070.0,111060.0,8e-08]
[1760223659816,1.24371056,111070.0,111060.0,0.02163008]
[1760223660016,1.24371056,111070.0,111060.0,8e-08]
[1760223660617,1.24371056,111070.0,111060.0,0.02163008]
[1760223660817,1.24371056,111070.0,111060.0,8e-08]
[1760223661012,1.57691504,111070.0,111060.0,8e-08]
[1760223661814,1.60912192,111070.0,111060.0,8e-08]
[1760223664121,1.62555523,111070.0,111060.0,8e-08]
[1760223664924,1.65786138,111070.0,111060.0,8e-08]
[1760223665125,0.99226924,111070.0,111060.0,8e-08]
[1760223665927,1.32547372,111070.0,111060.0,8e-08]
[1760223666622,0.99226924,111070.0,111060.0,0.02165008]
[1760223666928,0.87601541,111070.0,111060.0,0.02165008]
[1760223667129,1.65786008,111070.0,111060.0,8e-08]
[1760223668432,0.9246556,111070.0,111060.0,0.02165008]
[1760223668632,0.87601541,111070.0,111060.0,0.02165008]
[1760223669931,0.78608121,111070.0,111060.0,0.45832676]
[1760223670131,0.37926636,111070.0,111060.0,1.21912676]
[1760223670429,0.02350188,111070.0,111060.0,1.21912676]
[1760223671034,0.02350188,111070.0,111060.0,1.55233124]
[1760223671335,0.76108933,111100.0,111090.0,0.03518]
[1760223671531,0.42400847,111100.0,111090.0,0.03518]
[1760223671736,0.39170362,111100.0,111090.0,0.03518]
[1760223672431,0.48161352,111100.0,111090.0,0.03518]
[1760223672632,0.48161352,111100.0,111080.0,0.79745698]
[1760223672633,0.124698,111090.0,111080.0,0.39598]
[1760223672936,0.46835162,111090.0,111080.0,0.72918448]
[1760223673137,0.48162162,111090.0,111080.0,0.39598]
[1760223673332,0.84242162,111090.0,111080.0,0.03518]
[1760223673539,0.50921714,111090.0,111080.0,0.03518]
[1760223674832,0.51021714,111090.0,111080.0,0.03518]
[1760223675036,0.40802914,111090.0,111080.0,0.03518]
[1760223675234,0.40802914,111090.0,111080.0,0.1251061]
[1760223675532,0.04722914,111090.0,111080.0,0.5251061]
[1760223675738,0.13714714,111090.0,111080.0,0.43518]
[1760223676537,0.02571914,111090.0,111080.0,0.5251061]
[1760223676731,0.02571914,111090.0,111080.0,0.8859061]
[1760223677236,0.002,111090.0,111080.0,0.8859061]
[1760223678737,0.002,111090.0,111080.0,1.30227967]
[1760223679241,0.02151,111090.0,111080.0,0.8859061]
[1760223679437,0.4639805,111100.0,111080.0,0.8859061]
[1760223679741,0.38446732,111100.0,111090.0,0.125098]
[1760223680043,0.02366732,111100.0,111090.0,0.485898]
[1760223680233,0.04517732,111100.0,111090.0,0.125098]
[1760223681136,0.02151,111100.0,111090.0,0.125098]
[1760223682141,0.41923248,111100.0,111090.0,0.03518]
[1760223682342,0.38231,111100.0,111090.0,0.125098]
[1760223682744,0.02151,111100.0,111090.0,0.125098]
[1760223683135,0.02151,111100.0,111090.0,0.485898]
[1760223685137,0.02151,111100.0,111090.0,0.125098]